bitfinex-derivatives/quotes_BNBF0:USTF0_20251010
["timestamp","ask_amount","ask_price","bid_price","bid_amount"]
[1760117693228,1.1755452,1229.2,1227.3,0.5235409]
[1760117693530,1.1755452,1229.2,1227.4,0.5235409]
[1760117693729,1.1755452,1229.2,1227.5,0.5235409]
[1760117694033,1.1755452,1229.1,1227.1,0.59965446]
[1760117694332,1.1755452,1228.9,1227.2,0.52365072]
[1760117694532,1.1755452,1228.9,1227.3,0.52365072]
[1760117694734,1.1755452,1228.9,1226.9,0.59965446]
[1760117694935,1.1755452,1228.9,1227.0,0.52359005]
[1760117695134,1.1755452,1228.9,1226.9,0.59965446]
[1760117695135,1.1755452,1228.9,1227.1,0.52359005]
[1760117695332,1.1755452,1228.9,1227.2,0.52359005]
[1760117695535,1.1755452,1228.9,1227.3,0.52359005]
[1760117695733,1.1755452,1228.9,1226.9,0.59965446]
[1760117696031,1.1755452,1228.8,1227.0,0.52357361]
[1760117696332,1.1755452,1229.0,1227.1,0.52357361]
[1760117696535,1.1755452,1229.0,1227.2,0.52357361]
[1760117696736,1.1755452,1229.0,1227.3,0.52357361]
[1760117697031,1.1755452,1229.0,1226.8,0.59965446]
[1760117697235,1.1755452,1229.0,1226.9,0.53937457]
[1760117697439,1.1755452,1229.0,1227.0,0.53937457]
[1760117697642,1.1755452,1229.0,1227.1,0.53937457]
[1760117697840,1.1755452,1229.0,1227.2,0.53937457]
[1760117698137,1.1755452,1229.0,1227.3,0.53937457]
[1760117698339,1.1755452,1229.0,1226.8,0.59965446]
[1760117698536,1.1755452,1229.0,1226.9,0.53950699]
[1760117698836,1.1755452,1228.7,1227.0,0.53950699]
[1760117699035,1.1755452,1228.7,1226.6,0.59965446]
[1760117699337,1.1755452,1228.5,1226.7,0.53980936]
[1760117699536,1.1755452,1228.6,1226.8,0.53980936]
[1760117699735,1.1755452,1228.5,1226.9,0.53980936]
[1760117699938,1.1755452,1228.5,1226.4,0.59965446]
[1760117700139,1.1755452,1228.5,1226.5,0.54013736]
[1760117700338,1.1755452,1228.5,1226.6,0.54013736]
[1760117700536,1.1755452,1228.4,1226.7,0.54013736]
[1760117700836,1.1755452,1228.4,1226.3,0.59965446]
[1760117701041,1.1755452,1228.5,1226.4,0.54024191]
[1760117701336,1.1755452,1228.4,1226.5,0.54024191]
[1760117701538,1.1755452,1228.4,1226.6,0.54024191]
[1760117701739,1.1755452,1228.4,1226.3,0.59965446]
[1760117701740,1.1755452,1228.4,1226.7,0.54024191]
[1760117701938,1.1755452,1228.5,1226.8,0.54024191]
[1760117702138,1.1755452,1228.5,1226.9,0.54024191]
[1760117702435,1.1755452,1228.6,1227.0,0.5402382]
[1760117702635,1.1755452,1228.6,1226.6,0.59965446]
[1760117702839,1.1755452,1228.6,1226.7,0.54007874]
[1760117703042,1.1755452,1228.6,1226.8,0.54007874]
[1760117703242,1.1755452,1228.6,1226.9,0.54007874]
[1760117703442,1.1755452,1228.6,1227.0,0.54007874]
[1760117703643,1.1755452,1228.6,1226.6,0.59965446]
[1760117703940,1.1755452,1228.6,1226.7,0.53973481]
[1760117704142,1.1755452,1228.9,1226.8,1.13938927]
[1760117704342,1.1755452,1228.9,1226.9,0.53973481]
[1760117704542,1.1755452,1228.9,1227.0,0.53973481]
[1760117704742,1.1755452,1228.9,1227.1,0.53973481]
[1760117704942,1.1755452,1228.9,1226.8,0.59965446]
[1760117704943,1.1755452,1228.9,1227.2,0.53973481]
[1760117705143,1.1755452,1228.8,1226.8,0.59965446]
[1760117705447,1.1755452,1228.8,1226.9,0.53952942]
[1760117705643,1.1755452,1228.8,1227.0,0.53952942]
[1760117705844,1.1755452,1228.5,1226.5,0.59965446]
[1760117706045,1.1755452,1228.5,1226.6,0.53972627]
[1760117706246,1.1755452,1228.5,1226.7,0.53972627]
[1760117706545,1.1755452,1228.8,1226.8,0.53972627]
[1760117706842,2.7429388,1229.9,1225.9,0.9442423]
[1760117706843,1.1755452,1228.7,1226.2,0.59965446]
[1760117707145,1.1755452,1228.2,1226.3,0.54001293]
[1760117707342,1.1755452,1228.2,1226.4,0.54001293]
[1760117707546,1.1755452,1228.2,1226.5,0.54001293]
[1760117707748,3.1347872,1229.0,1226.6,0.54001293]
[1760117707950,1.1755452,1228.2,1225.9,0.74140628]
[1760117708248,1.1755452,1228.2,1226.0,1.14007333]
[1760117708443,1.1755452,1228.3,1226.1,0.54041887]
[1760117708645,1.1755452,1228.4,1226.2,0.54041887]
[1760117708849,1.1755452,1228.4,1226.3,0.54041887]
[1760117709049,0.14154253,1230.2,1226.4,0.54041887]
[1760117709050,1.1755452,1228.3,1226.4,0.54041887]
[1760117709248,1.1755452,1228.4,1226.5,0.54041887]
[1760117709447,1.1755452,1228.4,1226.0,0.59965446]
[1760117709750,1.1755452,1228.3,1226.1,0.54007338]
[1760117709949,1.1755452,1228.3,1226.2,0.54007338]
[1760117710148,1.1755452,1228.4,1226.3,0.54007338]
[1760117710349,1.1755452,1228.4,1226.4,0.54007338]
[1760117710549,1.1755452,1228.4,1226.5,0.54007338]
[1760117710753,1.1755452,1228.4,1226.0,0.59965446]
[1760117710952,0.14154253,1230.2,1226.0,0.59965446]
[1760117710953,1.1755452,1228.6,1226.1,0.53991801]
[1760117711151,1.1755452,1228.6,1226.2,0.53991801]
[1760117711350,1.1755452,1228.6,1226.3,0.53991801]
[1760117711650,1.1755452,1228.8,1226.4,1.13957247]
[1760117711951,1.1755452,1228.8,1226.5,0.53991801]
[1760117712150,1.1755452,1228.6,1226.6,0.53991801]
[1760117712349,1.1755452,1228.9,1226.7,0.53991801]
[1760117712550,1.1755452,1228.9,1226.8,0.53991801]
[1760117712751,1.1755452,1228.9,1226.9,0.53991801]
[1760117712954,1.1755452,1228.9,1227.0,0.53991801]
[1760117713251,1.1755452,1228.9,1227.1,0.53991801]
[1760117713455,1.1755452,1228.9,1226.6,0.59965446]
[1760117713651,1.1755452,1228.9,1226.7,0.53953363]
[1760117713954,1.1755452,1228.9,1226.8,0.53953363]
[1760117714153,1.1755452,1228.7,1226.9,0.53953363]
[1760117714454,1.1755452,1228.7,1227.0,0.53950246]
[1760117714751,1.1755452,1228.8,1227.1,0.53946177]
[1760117715050,1.1755452,1228.8,1226.7,0.60656506]
[1760117715250,1.1755452,1228.8,1226.8,0.53935605]
[1760117715449,1.1755452,1228.8,1226.9,0.53935605]
[1760117715652,1.1755452,1228.9,1227.0,0.53935605]
[1760117715851,1.1755452,1228.9,1227.1,0.53935605]
[1760117716053,1.1755452,1228.9,1226.7,0.60656506]
[1760117716255,1.1755452,1228.9,1226.8,0.53937042]
[1760117716455,1.1755452,1228.9,1226.9,0.53937042]
[1760117716656,1.1755452,1228.9,1227.0,0.53937042]
[1760117716956,1.1755452,1228.9,1227.1,0.53937042]
[1760117717155,1.1755452,1229.2,1227.2,0.53937042]
[1760117717353,1.1755452,1229.2,1227.3,0.53937042]
[1760117717653,1.1755452,1229.2,1227.4,0.53937042]
[1760117717853,1.1755452,1229.2,1226.9,0.60656506]
[1760117718054,1.1755452,1229.3,1227.0,0.53903637]
[1760117718354,1.1755452,1229.4,1227.1,0.53903637]
[1760117718654,1.1755452,1229.4,1227.2,0.53903637]
[1760117718953,1.1755452,1229.3,1227.3,0.53903637]
[1760117719157,1.1755452,1229.2,1226.7,0.60656506]
[1760117719354,1.1755452,1229.1,1226.8,0.53920165]
[1760117719554,1.1755452,1229.1,1226.9,0.53920165]
[1760117719759,1.1755452,1229.1,1227.0,0.53920165]
[1760117720059,1.1755452,1229.1,1227.1,0.53920165]
[1760117720356,1.1755452,1228.9,1227.2,0.53920165]
[1760117720555,1.1755452,1228.9,1226.9,0.60656506]
[1760117720755,1.1755452,1228.9,1227.0,0.53863176]
[1760117720954,1.1755452,1229.0,1227.1,0.53863176]
[1760117721158,1.1755452,1229.0,1227.2,0.53863176]
[1760117721459,1.1755452,1229.0,1227.3,0.53863176]
[1760117721659,1.1755452,1229.0,1227.0,0.60656506]
[1760117721860,1.1755452,1229.0,1227.1,0.53845258]
[1760117722057,1.1755452,1229.0,1227.2,0.53845258]
[1760117722257,1.1755452,1229.0,1227.3,0.53845258]
[1760117722457,1.1755452,1229.0,1226.9,0.60656506]
[1760117722659,1.1755452,1229.0,1227.0,0.53849114]
[1760117722858,1.1755452,1229.0,1227.1,0.53849114]
[1760117723163,1.1755452,1229.0,1227.2,0.53849114]
[1760117723357,1.1755452,1229.0,1227.3,0.53849114]
[1760117723562,1.1755452,1229.0,1226.9,0.60656506]
[1760117723762,1.1755452,1229.0,1227.0,0.53858174]
[1760117724058,1.1755452,1229.0,1227.1,0.53858174]
[1760117724259,1.1755452,1228.8,1226.7,0.60656506]
[1760117724460,1.1755452,1228.8,1226.8,0.53875622]
[1760117724662,1.1755452,1228.8,1226.9,0.53875622]
[1760117724960,1.1755452,1228.8,1227.0,0.53875622]
[1760117725160,1.1755452,1228.8,1227.1,0.53875622]
[1760117725361,1.1755452,1228.8,1226.7,0.60656506]
[1760117725565,1.1755452,1228.8,1226.8,0.53877087]
[1760117725860,1.1755452,1228.8,1226.9,0.53877087]
[1760117726060,1.1755452,1228.8,1227.0,0.53877087]
[1760117726265,1.959242,1229.7,1227.1,0.53877087]
[1760117726470,1.959242,1229.7,1226.7,0.60656506]
[1760117726664,1.959242,1229.7,1226.8,0.54109656]
[1760117726862,1.959242,1229.7,1226.9,0.54109656]
[1760117727066,1.959242,1229.7,1227.0,0.54109656]
[1760117727265,1.959242,1229.7,1227.1,0.54109656]
[1760117727567,1.959242,1229.8,1226.7,0.60656506]
[1760117727765,1.959242,1229.8,1226.8,0.54117411]
[1760117727963,1.959242,1229.8,1226.9,0.54117411]
[1760117728165,1.959242,1229.8,1227.0,0.54117411]
[1760117728363,1.959242,1229.8,1227.1,0.54117411]
[1760117728565,2.10078453,1230.2,1227.2,0.54117411]
[1760117728864,2.10078453,1230.2,1227.3,0.54117411]
[1760117729065,0.14154253,1230.2,1226.8,0.60656506]
[1760117729266,0.14154253,1230.2,1226.9,0.54136001]
[1760117729565,0.14154253,1230.2,1227.0,0.54136001]
[1760117729766,0.14154253,1230.2,1227.1,0.54136001]
[1760117729966,0.14154253,1230.2,1227.2,0.54136001]
[1760117730167,2.10078453,1230.2,1226.7,0.60656506]
[1760117730371,2.10078453,1230.2,1226.8,0.54132371]
[1760117730668,1.959242,1229.6,1226.9,0.54132371]
[1760117730868,1.959242,1229.6,1226.6,0.60656506]
[1760117731172,1.959242,1229.6,1226.7,0.54137993]
[1760117731373,1.959242,1229.6,1226.8,0.54137993]
[1760117731670,1.959242,1229.7,1226.9,0.54137993]
[1760117731871,1.959242,1229.7,1227.0,0.54137993]
[1760117732169,1.959242,1229.9,1226.6,0.60656506]
[1760117732369,1.959242,1229.9,1226.7,0.5413642]
[1760117732573,1.959242,1229.9,1226.8,0.5413642]
[1760117732872,1.959242,1229.9,1226.9,0.5413642]
[1760117733069,1.959242,1229.8,1227.0,0.5413642]
[1760117733273,1.959242,1229.8,1226.6,0.60656506]
[1760117733573,1.959242,1229.8,1226.7,0.54136026]
[1760117733872,1.959242,1229.8,1226.8,0.54136026]
[1760117734068,1.959242,1229.8,1226.9,0.54136026]
[1760117734272,1.959242,1230.1,1227.0,0.54136026]
[1760117734471,1.959242,1230.1,1227.1,0.54136026]
[1760117734674,1.959242,1230.1,1226.6,0.60656506]
[1760117734872,1.959242,1230.1,1226.7,0.54134653]
[1760117735072,1.959242,1230.1,1226.8,0.54134653]
[1760117735271,1.959242,1230.1,1226.9,0.54134653]
[1760117735470,1.959242,1230.1,1227.0,0.54134653]
[1760117735674,1.959242,1230.1,1227.1,0.54134653]
[1760117735873,1.959242,1230.1,1226.6,0.60656506]
[1760117736072,1.959242,1230.1,1226.7,0.54138187]
[1760117736272,1.959242,1230.1,1226.8,0.54138187]
[1760117736474,1.959242,1230.1,1226.9,0.54138187]
[1760117736677,1.959242,1230.1,1227.0,0.54138187]
[1760117736972,1.959242,1230.1,1226.6,0.60656506]
[1760117736973,1.959242,1230.1,1227.1,0.54138187]
[1760117737174,1.959242,1230.1,1226.5,0.60656506]
[1760117737373,1.959242,1229.5,1226.6,0.54164234]
[1760117737574,1.959242,1229.5,1226.7,0.54164234]
[1760117737874,1.959242,1229.5,1226.8,0.54164234]
[1760117738074,1.959242,1229.5,1226.4,0.60656506]
[1760117738075,1.959242,1229.5,1226.9,0.54164234]
[1760117738271,1.959242,1229.5,1226.4,0.60656506]
[1760117738483,1.959242,1229.5,1226.5,0.54176638]
[1760117738673,1.959242,1229.5,1226.6,0.54176638]
[1760117738876,1.959242,1229.5,1226.7,0.54176638]
[1760117739083,1.959242,1229.5,1226.8,0.54176638]
[1760117739284,1.959242,1229.3,1226.3,0.60656506]
[1760117739486,1.959242,1229.3,1226.4,0.54191521]
[1760117739682,1.959242,1229.3,1226.5,0.54191521]
[1760117739880,1.959242,1229.2,1226.6,0.54191521]
[1760117740085,1.959242,1229.2,1226.1,0.80249048]
[1760117740086,1.959242,1229.2,1226.1,0.60656506]
[1760117740383,1.959242,1229.3,1226.2,0.5419385]
[1760117740582,1.959242,1229.3,1226.3,0.5419385]
[1760117740782,1.959242,1229.3,1226.4,0.5419385]
[1760117740982,1.959242,1229.3,1225.9,0.74831688]
[1760117741186,1.959242,1229.3,1226.0,0.54197058]
[1760117741484,1.959242,1229.3,1226.1,0.54197058]
[1760117741684,1.959242,1229.3,1226.2,0.54197058]
[1760117741882,1.959242,1229.3,1226.3,0.54197058]
[1760117742187,1.959242,1229.3,1226.4,0.54197058]
[1760117742486,1.959242,1229.3,1225.9,0.74831688]
[1760117742684,1.959242,1229.3,1226.0,0.54181399]
[1760117742887,1.959242,1229.3,1226.1,0.54181399]
[1760117743190,1.959242,1229.3,1226.2,0.54181399]
[1760117743388,1.959242,1229.3,1226.3,0.54181399]
[1760117743589,1.959242,1229.1,1226.4,0.54181399]
[1760117743790,1.959242,1229.1,1225.9,0.74831688]
[1760117743985,1.959242,1229.2,1226.0,0.54174545]
[1760117744186,1.959242,1229.2,1226.1,0.54174545]
[1760117744388,1.959242,1229.2,1226.2,0.54174545]
[1760117744590,1.959242,1229.3,1226.3,0.54174545]
[1760117744787,1.959242,1229.3,1226.4,0.54174545]
[1760117744991,1.959242,1229.2,1226.5,0.54174545]
[1760117745193,1.959242,1229.2,1226.0,0.60656506]
[1760117745394,1.959242,1229.2,1226.1,0.5415927]
[1760117745593,1.959242,1229.4,1226.2,0.5415927]
[1760117745893,2.7429388,1229.7,1226.3,0.5415927]
[1760117746194,1.959242,1230.1,1226.4,0.5415927]
[1760117746387,1.959242,1230.1,1226.5,0.5415927]
[1760117746693,1.959242,1230.1,1226.6,0.5415927]
[1760117746993,0.14154253,1230.2,1226.7,0.5415927]
[1760117747194,0.14154253,1230.2,1226.8,0.5415927]
[1760117747394,0.14154253,1230.2,1226.9,0.54149434]
[1760117747590,0.14154253,1230.2,1226.1,0.60656506]
[1760117747791,0.14154253,1230.2,1226.2,0.54148207]
[1760117747994,0.14154253,1230.2,1226.3,0.54148207]
[1760117748294,0.14154253,1230.2,1226.4,0.54148207]
[1760117748494,0.14154253,1230.2,1226.5,0.54148207]
[1760117748691,0.14154253,1230.2,1226.6,0.54148207]
[1760117748892,0.14154253,1230.2,1226.7,0.54148207]
[1760117749093,0.14154253,1230.2,1226.8,0.54148207]
[1760117749394,0.14154253,1230.2,1226.1,0.60656506]
[1760117749594,0.14154253,1230.2,1226.2,0.54146435]
[1760117749893,0.14154253,1230.2,1226.3,0.54146435]
[1760117750091,1.959242,1229.8,1226.4,0.54146435]
[1760117750291,1.959242,1229.8,1226.5,0.54146435]
[1760117750495,1.959242,1229.5,1226.6,0.54146435]
[1760117750694,1.959242,1229.5,1226.7,0.54146435]
[1760117750891,1.959242,1229.5,1226.3,0.60656506]
[1760117751190,1.959242,1229.4,1226.4,0.54145435]
[1760117751393,1.959242,1229.4,1226.5,0.54145435]
[1760117751591,1.959242,1229.4,1226.6,0.54145435]
[1760117751892,1.959242,1229.4,1226.1,0.60656506]
[1760117752095,1.959242,1229.7,1226.2,0.54149167]
[1760117752392,1.959242,1229.7,1226.3,0.54149167]
[1760117752591,1.959242,1229.7,1226.4,0.54149167]
[1760117752892,1.959242,1229.7,1226.5,0.54149167]
[1760117753091,1.959242,1229.6,1226.0,0.60656506]
[1760117753295,1.959242,1229.6,1226.1,0.54160772]
[1760117753492,1.959242,1229.6,1226.2,0.54160772]
[1760117753794,1.959242,1229.6,1226.3,0.54160772]
[1760117753995,1.959242,1229.6,1225.9,0.74831688]
[1760117754197,1.959242,1229.1,1226.0,0.54164428]
[1760117754394,1.959242,1229.1,1226.1,0.54164428]
[1760117754696,1.959242,1229.2,1226.2,0.54164428]
[1760117754997,1.959242,1229.2,1225.9,0.14175182]
[1760117755195,4.7021808,1229.5,1226.0,0.5415823]
[1760117755397,4.7021808,1229.5,1226.1,0.5415823]
[1760117755697,1.959242,1229.5,1226.2,0.5415823]
[1760117755897,1.959242,1229.5,1226.3,0.5415823]
[1760117756097,1.959242,1229.5,1226.4,0.5415823]
[1760117756298,0.80651566,1228.0,1225.9,0.14175182]
[1760117756498,0.80651566,1227.9,1225.9,0.14175182]
[1760117757398,0.80651566,1227.8,1225.9,0.74831688]
[1760117757598,0.80651566,1227.7,1225.9,0.74831688]
[1760117757799,0.80651566,1227.8,1225.9,0.74831688]
[1760117758698,0.80651566,1227.7,1225.9,0.74831688]
[1760117759099,0.80651566,1227.8,1225.9,0.74831688]
[1760117759299,0.80651566,1228.1,1225.9,0.14175182]
[1760117759499,0.80651566,1228.0,1225.9,0.14175182]
[1760117759697,0.80651566,1228.1,1225.9,0.14175182]
[1760117761902,0.80651566,1228.0,1225.9,0.14175182]
[1760117762302,0.80651566,1227.9,1225.9,0.14175182]
[1760117763001,1.959242,1229.1,1225.9,0.14175182]
[1760117763002,0.80651566,1227.8,1225.9,0.14175182]
[1760117763399,0.80651566,1227.7,1225.9,0.14175182]
[1760117764403,0.80651566,1227.9,1225.9,0.74831688]
[1760117766302,0.80651566,1227.8,1225.9,0.14175182]
[1760117770104,0.80651566,1228.1,1225.9,0.14175182]
[1760117772702,0.80651566,1228.6,1225.9,0.14175182]
[1760117773101,0.80651566,1228.5,1225.9,0.74831688]
[1760117773306,0.80651566,1228.3,1226.1,0.60656506]
[1760117773506,0.80651566,1228.4,1226.1,0.60656506]
[1760117773807,0.80651566,1228.3,1226.1,0.60656506]
[1760117774304,0.80651566,1228.3,1226.2,0.60656506]
[1760117777809,0.80651566,1228.2,1226.1,0.60656506]
[1760117778809,0.80651566,1228.1,1226.1,0.60656506]
[1760117779106,0.80651566,1227.9,1226.0,0.60656506]
[1760117779509,0.80651566,1228.0,1225.9,0.74831688]
[1760117779705,1.959242,1229.0,1225.9,0.74831688]
[1760117779706,0.80651566,1228.1,1225.9,0.14175182]
[1760117781007,0.80651566,1228.3,1225.5,0.60656506]
[1760117781209,0.80651566,1228.4,1225.5,0.60656506]
[1760117781409,0.80651566,1228.3,1225.7,0.141846]
[1760117782010,0.80651566,1228.2,1225.7,0.141846]
[1760117782916,0.80651566,1228.1,1225.7,0.141846]
[1760117783515,1.959242,1229.8,1225.7,0.74841106]
[1760117783516,0.80651566,1228.0,1225.7,0.74841106]
[1760117783715,0.80651566,1228.5,1225.7,0.141846]
[1760117784012,0.80651566,1228.4,1225.7,0.141846]
[1760117784613,0.80651566,1228.3,1225.7,0.141846]
[1760117784812,0.80651566,1228.0,1225.7,0.141846]
[1760117785016,0.80651566,1227.9,1225.7,0.141846]
[1760117785313,0.80651566,1227.7,1225.6,0.60656506]
[1760117785511,0.80651566,1227.6,1225.6,0.60656506]
[1760117785712,0.80651566,1227.5,1225.6,0.60656506]
[1760117786016,0.80651566,1227.5,1225.4,0.14187028]
[1760117786017,0.80651566,1227.4,1225.4,0.74843534]
[1760117786417,0.80651566,1227.5,1225.4,0.74843534]
[1760117788818,0.80651566,1227.4,1225.4,0.74843534]
[1760117789314,0.80651566,1227.3,1225.4,0.74843534]
[1760117790019,0.80651566,1227.4,1225.4,0.74843534]
[1760117791217,0.80651566,1227.5,1225.4,0.74843534]
[1760117791616,0.80651566,1227.5,1225.4,0.14187028]
[1760117792020,0.80651566,1227.4,1225.4,0.14187028]
[1760117792316,0.80651566,1227.5,1225.4,0.14187028]
[1760117793121,0.80651566,1227.6,1225.4,0.14187028]
[1760117794521,0.80651566,1227.5,1225.4,0.14187028]
[1760117795219,0.80651566,1227.6,1225.4,0.14187028]
[1760117795419,0.80651566,1227.5,1225.5,0.60656506]
[1760117795616,0.80651566,1227.5,1225.6,0.60656506]
[1760117796318,0.80651566,1227.5,1225.7,0.60656506]
[1760117796621,0.80651566,1227.7,1225.7,0.60656506]
[1760117797420,0.80651566,1227.7,1225.6,0.60656506]
[1760117797620,0.80651566,1227.6,1225.6,0.60656506]
[1760117797817,0.80651566,1227.6,1225.5,0.60656506]
[1760117798523,0.80651566,1227.7,1225.5,0.60656506]
[1760117799021,0.80651566,1227.6,1225.5,0.60656506]
[1760117799221,0.80651566,1227.7,1225.4,0.74843534]
[1760117799718,0.80651566,1227.6,1225.4,0.74843534]
[1760117800819,0.80651566,1227.4,1225.5,0.60656506]
[1760117802225,0.80651566,1227.5,1225.5,0.60656506]
[1760117802620,0.80651566,1227.4,1225.5,0.60656506]
[1760117803521,0.80651566,1227.4,1225.4,0.74843534]
[1760117803721,0.80651566,1227.7,1224.9,0.60656506]
[1760117803920,0.80651566,1227.7,1225.1,0.14190962]
[1760117805626,0.80651566,1227.3,1225.1,0.14190962]
[1760117805921,0.80651566,1227.2,1225.1,0.14190962]
[1760117806122,0.80651566,1227.1,1225.1,0.14190962]
[1760117806923,0.80651566,1227.2,1225.1,0.74847468]
[1760117808528,0.80651566,1227.4,1225.2,0.60656506]
[1760117809129,0.80651566,1227.3,1225.3,0.60656506]
[1760117809330,0.80651566,1227.4,1225.4,0.60656506]
[1760117809826,0.80651566,1227.4,1225.3,0.60656506]
[1760117810032,0.80651566,1227.7,1225.4,0.60656506]
[1760117810332,0.14187664,1227.0,1225.4,0.60656506]
[1760117810531,0.80651566,1227.7,1225.6,0.60656506]
[1760117810731,0.80651566,1227.8,1225.7,0.60656506]
[1760117811031,0.80651566,1228.1,1225.7,0.60656506]
[1760117811229,0.80651566,1228.0,1226.0,0.60656506]
[1760117811430,0.14183617,1227.3,1226.0,0.60656506]
[1760117811631,0.80651566,1228.0,1226.0,0.60656506]
[1760117812029,0.14183819,1227.0,1225.9,0.60656506]
[1760117812330,0.80651566,1227.8,1225.7,0.60656506]
[1760117812527,0.14184715,1226.8,1225.5,0.60656506]
[1760117812732,0.80651566,1227.8,1225.5,0.60656506]
[1760117813132,0.14186941,1226.8,1225.5,0.60656506]
[1760117813332,0.80651566,1227.8,1225.5,0.60656506]
[1760117813734,0.14187549,1226.7,1225.5,0.60656506]
[1760117813930,0.80651566,1227.7,1225.5,0.60656506]
[1760117814233,0.14187549,1226.7,1225.5,0.60656506]
[1760117814430,0.80651566,1227.6,1225.4,0.60656506]
[1760117814733,0.14187838,1226.7,1225.4,0.60656506]
[1760117815135,0.80651566,1227.5,1225.4,0.60656506]
[1760117815334,0.14188416,1226.7,1225.4,0.60656506]
[1760117815735,0.80651566,1227.4,1225.4,0.60656506]
[1760117815940,0.14188706,1226.7,1225.4,0.60656506]
[1760117816139,0.80651566,1227.4,1225.4,0.60656506]
[1760117816339,0.80651566,1227.5,1225.5,0.60656506]
[1760117816535,0.14188995,1226.7,1225.5,0.60656506]
[1760117816735,0.80651566,1227.5,1225.5,0.60656506]
[1760117817240,0.14188416,1226.7,1225.5,0.60656506]
[1760117817436,0.80651566,1227.6,1225.4,0.60656506]
[1760117817636,0.14188416,1227.1,1225.4,0.60656506]
[1760117819340,0.14188416,1227.1,1225.5,0.60656506]
[1760117819835,0.80651566,1227.9,1225.9,0.60656506]
[1760117820140,0.14183385,1227.3,1225.9,0.60656506]
[1760117820336,0.80651566,1228.0,1225.9,0.60656506]
[1760117820540,0.14183732,1227.5,1225.9,0.60656506]
[1760117821038,0.14183732,1227.5,1225.8,0.60656506]
[1760117821438,0.14183732,1227.5,1225.9,0.60656506]
[1760117822340,0.14183732,1227.5,1226.0,0.60656506]
[1760117822841,0.14183732,1227.5,1225.8,0.60656506]
[1760117823338,0.14183732,1227.5,1225.9,0.60656506]
[1760117823542,0.14183732,1227.5,1225.8,0.60656506]
[1760117823843,0.14183732,1227.5,1225.9,0.60656506]
[1760117824040,0.14183732,1227.5,1225.6,0.80249048]
[1760117824041,0.14183732,1227.5,1225.8,0.60656506]
[1760117824244,0.14183732,1227.5,1225.1,0.14190962]
[1760117824245,0.14183732,1227.5,1226.0,0.60656506]
[1760117824544,0.80651566,1228.2,1226.4,0.60656506]
[1760117824840,0.14177203,1227.7,1226.4,0.60656506]
[1760117826446,0.14177203,1227.7,1226.6,0.60656506]
[1760117826846,0.14177203,1227.7,1226.5,0.60656506]
[1760117827052,0.14177203,1227.7,1226.5,0.60619856]
[1760117831353,0.14177203,1227.7,1226.4,0.60619856]
[1760117832051,0.14177203,1227.7,1225.6,0.60619856]
[1760117832254,0.14177203,1227.7,1225.1,0.74802085]
[1760117832454,0.14177203,1227.7,1225.2,0.60619856]
[1760117833054,0.14177203,1227.7,1225.1,0.14182229]
[1760117833755,0.14177203,1227.7,1225.1,0.74802085]
[1760117833954,0.94828769,1227.7,1225.1,0.74802085]
[1760117834154,0.80651566,1227.6,1225.1,0.74802085]
[1760117834756,0.80651566,1227.4,1225.2,0.60619856]
[1760117836356,0.80651566,1227.5,1225.2,0.60619856]
[1760117836556,0.80651566,1227.4,1225.2,0.60619856]
[1760117836956,0.80651566,1227.5,1225.2,0.60619856]
[1760117837256,0.80651566,1227.6,1225.4,0.60619856]
[1760117837661,0.94828769,1227.7,1225.6,0.60619856]
[1760117838063,0.14177203,1227.7,1225.7,0.60619856]
[1760117840761,0.14177203,1227.7,1225.6,0.60619856]
[1760117841163,0.14177203,1227.7,1225.9,0.60619856]
[1760117841366,0.14177203,1227.7,1226.1,0.60619856]
[1760117843465,0.14177203,1227.7,1226.3,0.60619856]
[1760117844169,0.14177203,1227.7,1226.2,0.60619856]
[1760117844370,0.14177203,1227.7,1226.1,0.60619856]
[1760117844869,0.14177203,1227.7,1226.0,0.60619856]
[1760117845070,0.14177203,1227.7,1225.9,0.60619856]
[1760117847265,0.14177203,1227.7,1225.8,0.60619856]
[1760117849967,0.14177203,1227.7,1225.7,0.60619856]
[1760117850167,0.14177203,1227.7,1225.5,0.60619856]
[1760117850670,0.14177203,1227.7,1225.4,0.60619856]
[1760117850868,0.14177203,1227.7,1225.3,0.60619856]
[1760117852369,0.14177203,1227.7,1225.4,0.60619856]
[1760117852572,0.94828769,1227.7,1225.4,0.60619856]
[1760117852970,0.14177203,1227.7,1226.2,0.60619856]
[1760117853275,0.14180091,1228.0,1226.6,0.60619856]
[1760117853570,0.14180091,1228.0,1226.5,0.60619856]
[1760117854372,0.14180091,1228.0,1226.2,0.80249048]
[1760117854373,0.14180091,1228.0,1226.6,0.60619856]
[1760117857075,0.14180091,1228.0,1226.5,0.60619856]
[1760117857277,0.14180091,1228.0,1226.6,0.60619856]
[1760117857576,0.14180091,1228.0,1226.5,0.60619856]
[1760117857781,0.14180091,1228.0,1226.6,0.60619856]
[1760117858477,0.14180091,1228.0,1226.3,0.80249048]
[1760117858478,0.14180091,1228.0,1226.5,0.60619856]
[1760117858676,0.14180091,1228.0,1226.4,0.60619856]
[1760117860178,0.14180091,1228.0,1226.3,0.60619856]
[1760117861183,0.14180091,1228.0,1226.1,0.60619856]
[1760117861380,0.14180091,1228.0,1226.0,0.60619856]
[1760117861681,0.14180091,1228.0,1226.1,0.60619856]
[1760117861983,0.14180091,1228.0,1226.0,0.60619856]
[1760117862183,0.14180091,1228.0,1225.9,0.60619856]
[1760117863779,0.14180091,1228.0,1225.8,0.60619856]
[1760117864482,0.14180091,1228.0,1225.7,0.60619856]
[1760117864686,0.14180091,1228.0,1225.5,0.60619856]
[1760117867186,0.14180091,1228.0,1225.7,0.60619856]
[1760117868390,0.94831657,1228.0,1225.6,0.60619856]
[1760117870189,0.14180091,1228.0,1225.6,0.60619856]
[1760117872598,0.14180091,1228.0,1225.4,0.60619856]
[1760117873197,0.14180091,1228.0,1225.2,0.60619856]
[1760117873399,0.14180091,1228.0,1225.1,0.14182229]
[1760117873400,0.14180091,1228.0,1225.4,0.60619856]
[1760117873595,0.80651566,1227.8,1224.7,0.60619856]
[1760117873795,0.80651566,1227.8,1224.8,0.14189053]
[1760117874201,0.80651566,1227.9,1225.0,0.60619856]
[1760117874401,0.94831657,1228.0,1225.2,0.60619856]
[1760117875104,0.80651566,1227.9,1225.3,0.60619856]
[1760117875301,0.94831657,1228.0,1225.3,0.60619856]
[1760117875504,0.80651566,1227.9,1225.2,0.60619856]
[1760117877001,0.14180091,1228.0,1225.1,0.60619856]
[1760117877506,0.14180091,1228.0,1225.2,0.60619856]
[1760117877902,0.14180091,1228.0,1225.6,0.60619856]
[1760117878201,0.14180091,1228.0,1225.8,0.60619856]
[1760117878402,0.14180091,1228.0,1225.9,0.60619856]
[1760117879305,0.14180091,1228.0,1226.0,0.60619856]
[1760117879509,0.14180091,1228.0,1226.1,0.60619856]
[1760117879907,0.14180091,1228.0,1226.2,0.60619856]
[1760117880107,0.14180091,1228.0,1226.3,0.60619856]
[1760117880509,0.14180091,1228.0,1226.2,0.60619856]
[1760117880710,0.14180091,1228.0,1225.7,1.2037357]
[1760117880711,0.14180091,1228.0,1225.9,0.60619856]